bitfinex/quotes_SOLUSD_20230112
["timestamp","ask_amount","ask_price","bid_price","bid_amount"]
[1673524298808,46.63,16.087,16.075,20.0]
[1673524301967,17.0,16.086,16.075,20.0]
[1673524310690,17.0,16.086,16.076,20.0]
[1673524310896,17.0,16.086,16.073,20.0]
[1673524314561,17.0,16.086,16.07,59.9]
[1673524314891,66.63,16.085,16.069,66.68]
[1673524315108,17.0,16.084,16.069,20.0]
[1673524315296,161.8778,16.083,16.069,20.0]
[1673524315610,17.0,16.082,16.069,20.0]
[1673524318260,17.0,16.082,16.067,66.68]
[1673524318469,13.18,16.08,16.067,20.0]
[1673524318657,17.0,16.079,16.067,20.0]
[1673524318868,17.0,16.079,16.066,58.21775792]
[1673524319093,17.0,16.079,16.064,66.69]
[1673524319094,63.65,16.079,16.064,66.69]
[1673524319293,63.65,16.079,16.066,20.0]
[1673524326896,46.65,16.079,16.066,20.0]
[1673524327212,46.65,16.079,16.066,40.0]
[1673524328263,17.0,16.078,16.066,40.0]
[1673524328781,17.0,16.078,16.066,20.0]
[1673524329104,46.66,16.077,16.066,20.0]
[1673524329830,17.0,16.078,16.066,20.0]
[1673524332052,17.0,16.078,16.066,40.0]
[1673524334473,46.65,16.079,16.066,40.0]
[1673524334787,13.18,16.08,16.067,20.0]
[1673524334987,59.83,16.08,16.067,20.0]
[1673524335308,13.18,16.08,16.067,20.0]
[1673524336988,59.83,16.08,16.067,20.0]
[1673524337604,59.83,16.08,16.066,40.0]
[1673524337813,17.0,16.079,16.066,40.0]
[1673524338240,46.65,16.078,16.066,40.0]
[1673524338567,17.0,16.077,16.066,40.0]
[1673524338966,17.0,16.078,16.066,40.0]
[1673524340972,17.0,16.079,16.066,40.0]
[1673524342349,59.83,16.08,16.066,40.0]
[1673524342546,13.18,16.08,16.066,40.0]
[1673524344559,13.18,16.08,16.066,81.03]
[1673524345290,13.18,16.08,16.067,20.0]
[1673524347604,17.0,16.079,16.067,20.0]
[1673524349286,17.0,16.079,16.066,40.0]
[1673524350549,17.0,16.079,16.067,33.31]
[1673524350759,17.0,16.079,16.066,73.08]
[1673524350945,17.0,16.079,16.066,40.0]
[1673524353053,17.0,16.079,16.068,20.0]
[1673524354434,13.18,16.08,16.068,20.0]
[1673524354636,13.18,16.08,16.069,31.76]
[1673524354845,115.2378,16.083,16.07,20.0]
[1673524355087,115.2378,16.083,16.071,31.76]
[1673524358734,13.19,16.08,16.071,31.76]
[1673524361798,13.19,16.08,16.07,33.19]
[1673524365372,13.19,16.08,16.07,20.0]
[1673524366428,13.19,16.08,16.069,46.68]
[1673524370622,13.19,16.08,16.068,66.68]
[1673524381976,115.2378,16.083,16.068,66.68]
[1673524382169,17.0,16.082,16.068,66.68]
[1673524384403,115.2378,16.083,16.068,66.68]
[1673524384716,115.2378,16.083,16.068,46.68]
[1673524384919,17.0,16.082,16.067,40.38]
[1673524385973,13.1,16.08,16.067,40.38]
[1673524386173,13.1,16.08,16.066,60.53]
[1673524386379,17.0,16.079,16.066,20.0]
[1673524389544,17.0,16.079,16.065,20.0]
[1673524389757,23.19698,16.079,16.065,20.0]
[1673524391124,6.19698,16.079,16.065,20.0]
[1673524391339,59.74,16.08,16.065,56.29]
[1673524391658,59.74,16.08,16.066,20.0]
[1673524391848,13.1,16.08,16.066,20.0]
[1673524392395,63.65,16.079,16.066,20.0]
[1673524392585,17.0,16.079,16.066,20.0]
[1673524393548,17.0,16.079,16.065,20.0]
[1673524393761,23.19698,16.079,16.065,20.0]
[1673524394597,6.19698,16.079,16.065,20.0]
[1673524395001,13.1,16.08,16.066,20.0]
[1673524395423,46.65,16.079,16.066,20.0]
[1673524395735,13.1,16.08,16.066,20.0]
[1673524396482,17.0,16.079,16.066,20.0]
[1673524397437,17.0,16.079,16.065,129.9547]
[1673524400593,17.0,16.079,16.064,35.91]
[1673524400774,20.0,16.077,16.062,31.8]
[1673524401106,37.0,16.076,16.06,31.8]
[1673524401529,13.1,16.07,16.06,31.8]
[1673524401740,13.1,16.07,16.058,31.85]
[1673524401937,13.1,16.07,16.057,31.85]
[1673524402142,13.1,16.07,16.057,51.85]
[1673524402688,156.0567,16.074,16.057,51.85]
[1673524403001,109.3967,16.074,16.058,20.96]
[1673524403215,109.3967,16.074,16.059,31.85]
[1673524404782,109.3967,16.074,16.06,20.0]
[1673524405111,109.3967,16.074,16.061,31.9]
[1673524407515,17.0,16.073,16.059,37.02]
[1673524409215,63.66,16.073,16.058,59.74]
[1673524409710,173.0132,16.073,16.058,59.74]
[1673524413180,173.0132,16.073,16.058,20.0]
[1673524413409,156.0132,16.073,16.058,20.0]
[1673524414983,17.0,16.072,16.058,20.0]
[1673524416776,156.0132,16.073,16.058,20.0]
[1673524420971,17.0,16.072,16.058,20.0]
[1673524421167,46.67,16.071,16.058,20.0]
[1673524423707,13.21,16.07,16.058,20.0]
[1673524424764,109.02194728,16.069,16.043,230.05661775]
[1673524424954,13.11,16.06,16.044,20.0]
[1673524425160,46.7,16.059,16.044,20.0]
[1673524425365,46.7,16.059,16.045,46.75]
[1673524425805,46.7,16.059,16.044,66.75]
[1673524426335,17.0,16.058,16.043,20.0]
[1673524427381,17.0,16.058,16.044,20.0]
[1673524428236,102.00137582,16.058,16.044,20.0]
[1673524430840,17.0,16.056,16.044,20.0]
[1673524432115,46.7,16.059,16.045,20.96]
[1673524432425,13.21,16.06,16.047,20.0]
[1673524432638,13.21,16.06,16.047,133.5665]
[1673524433047,46.69,16.064,16.05,13.21]
[1673524433277,46.69,16.065,16.05,13.21]
[1673524434007,65.83496728,16.065,16.05,13.21]
[1673524434431,17.0,16.064,16.05,13.21]
[1673524434741,36.14496728,16.064,16.05,13.21]
[1673524436109,46.69,16.063,16.05,13.21]
[1673524436435,13.21,16.06,16.049,20.0]
[1673524436827,17.0,16.059,16.049,20.0]
[1673524437259,17.0,16.059,16.048,20.0]
[1673524438218,13.21,16.06,16.051,20.0]
[1673524438617,46.69,16.064,16.051,20.0]
[1673524440006,19.14496728,16.063,16.051,20.0]
[1673524440221,19.14496728,16.063,16.05,20.0]
[1673524440521,46.69,16.064,16.05,20.0]
[1673524442099,46.69,16.064,16.048,20.0]
[1673524445875,65.83496728,16.064,16.048,20.0]
[1673524448836,17.0,16.063,16.048,20.0]
[1673524449043,46.7,16.062,16.048,20.0]
[1673524450301,17.0,16.061,16.047,133.5665]
[1673524450931,46.7,16.06,16.047,133.5665]
[1673524451146,63.7,16.061,16.047,133.5665]
[1673524454705,46.7,16.061,16.047,133.5665]
[1673524454919,19.14496728,16.062,16.047,133.5665]
[1673524455231,46.69,16.064,16.048,0.96]
[1673524455449,157.7753,16.065,16.049,46.73]
[1673524455659,157.7753,16.065,16.05,20.0]
[1673524457354,17.0,16.064,16.05,20.0]
[1673524457665,46.69,16.063,16.05,20.0]
[1673524458291,17.0,16.064,16.05,20.0]
[1673524458502,46.69,16.063,16.05,20.0]
[1673524460515,157.7753,16.065,16.051,0.96]
[1673524460712,111.0853,16.065,16.051,0.96]
[1673524461124,46.69,16.064,16.051,0.96]
[1673524461551,157.7753,16.065,16.051,0.96]
[1673524462188,157.7753,16.065,16.05,33.16]
[1673524462400,17.0,16.064,16.05,33.16]
[1673524462611,46.69,16.063,16.05,33.16]
[1673524462813,46.69,16.065,16.052,20.0]
[1673524463135,46.68,16.067,16.053,20.0]
[1673524463327,46.68,16.069,16.053,20.0]
[1673524463533,17.0,16.068,16.053,20.0]
[1673524463776,46.68,16.067,16.053,20.0]
[1673524464828,46.68,16.069,16.054,20.96]
[1673524465007,46.68,16.069,16.055,20.0]
[1673524465220,46.68,16.069,16.056,20.0]
[1673524465433,46.67,16.071,16.056,138.8884]
[1673524468281,46.67,16.071,16.056,118.8884]
[1673524468484,17.0,16.07,16.056,118.8884]
[1673524468694,46.68,16.069,16.056,118.8884]
[1673524469107,59.79,16.07,16.056,118.8884]
[1673524469319,17.0,16.069,16.056,118.8884]
[1673524469528,46.68,16.068,16.056,118.8884]
[1673524469738,17.0,16.067,16.056,118.8884]
[1673524470390,17.0,16.068,16.056,118.8884]
[1673524470609,17.0,16.068,16.055,20.0]
[1673524471032,46.68,16.067,16.055,20.0]
[1673524471244,17.0,16.066,16.053,20.0]
[1673524477002,46.68,16.069,16.053,20.0]
[1673524477217,46.68,16.069,16.053,66.72]
[1673524477448,46.68,16.069,16.054,20.0]
[1673524477653,46.68,16.069,16.055,20.0]
[1673524478498,20.0,16.068,16.053,46.72]
[1673524478693,66.68,16.067,16.05,66.73]
[1673524479028,20.0,16.066,16.048,177.2624]
[1673524479235,63.69,16.065,16.048,131.7724]
[1673524479547,130.7291,16.064,16.048,131.7724]
[1673524479747,63.69,16.063,16.048,131.7724]
[1673524480289,63.69,16.063,16.048,111.7724]
[1673524480484,13.12,16.06,16.047,113.5665]
[1673524480695,17.0,16.059,16.047,113.5665]
[1673524484909,17.0,16.059,16.044,34.41]
[1673524485108,17.0,16.059,16.045,20.0]
[1673524485644,17.0,16.059,16.043,20.0]
[1673524485845,17.0,16.059,16.044,52.26]
[1673524486058,17.0,16.059,16.045,20.0]
[1673524487324,13.12,16.06,16.045,32.59881486]
[1673524487541,13.12,16.06,16.047,20.0]
[1673524489005,17.0,16.059,16.047,20.0]
[1673524489224,13.12,16.06,16.047,20.0]
[1673524489532,13.12,16.06,16.047,139.6049]
[1673524492891,13.12,16.06,16.047,139.6049]
[1673524500464,13.12,16.06,16.049,20.0]
[1673524502252,13.12,16.06,16.047,119.6049]
[1673524502566,17.0,16.059,16.047,119.6049]
[1673524503200,63.7,16.059,16.047,119.6049]
[1673524503516,17.0,16.059,16.047,119.6049]
[1673524503719,63.7,16.059,16.047,119.6049]
[1673524505927,17.0,16.059,16.047,119.6049]
[1673524513189,13.12,16.06,16.047,119.6049]
[1673524513708,13.12,16.06,16.048,20.0]
[1673524514885,17.0,16.059,16.048,20.0]
[1673524515500,17.0,16.059,16.047,119.6049]
[1673524516024,17.0,16.059,16.048,20.0]
[1673524516657,13.12,16.06,16.048,20.0]
[1673524517611,13.12,16.06,16.05,20.0]
[1673524531620,13.12,16.06,16.048,52.15]
[1673524535413,111.7323,16.065,16.051,20.0]
[1673524535607,111.7323,16.065,16.053,20.0]
[1673524541293,111.7323,16.065,16.052,32.13]
[1673524545515,111.7323,16.065,16.051,52.11]
[1673524545703,111.7323,16.065,16.051,20.0]
[1673524545919,158.4223,16.065,16.051,20.0]
[1673524548116,158.4223,16.065,16.05,51.85]
[1673524548330,17.0,16.064,16.05,13.23]
[1673524548653,46.69,16.063,16.05,13.23]
[1673524550826,46.69,16.064,16.05,13.23]
[1673524552215,154.9316,16.069,16.05,78.74881486]
[1673524552431,154.9316,16.069,16.051,68.65]
[1673524552737,154.9316,16.069,16.052,20.0]
[1673524552956,154.9316,16.069,16.053,66.72]
[1673524553151,154.9316,16.069,16.054,21.92]
[1673524553485,154.9316,16.069,16.055,20.0]
[1673524555692,17.0,16.068,16.054,20.0]
[1673524555878,46.68,16.067,16.054,20.0]
[1673524560728,46.68,16.068,16.055,0.96]
[1673524561684,46.68,16.068,16.054,20.0]
[1673524562509,17.0,16.067,16.054,20.0]
[1673524562720,46.68,16.066,16.054,20.0]
[1673524563127,46.68,16.066,16.054,19.5]
[1673524564830,46.68,16.068,16.054,19.5]
[1673524565133,17.0,16.067,16.054,19.5]
[1673524565353,46.68,16.066,16.054,19.5]
[1673524565775,13.23,16.06,16.05,13.22]
[1673524566383,46.7,16.059,16.047,119.6049]
[1673524567128,46.7,16.059,16.048,20.0]
[1673524569579,46.7,16.059,16.047,139.6049]
[1673524570310,46.7,16.059,16.048,20.0]
[1673524574310,46.7,16.059,16.048,19.5]
[1673524575040,46.7,16.059,16.047,119.6049]
[1673524576414,46.7,16.059,16.048,20.0]
[1673524578808,13.23,16.06,16.049,1.92]
[1673524579558,13.23,16.06,16.05,13.23]
[1673524579872,46.68,16.068,16.051,20.0]
[1673524580061,20.0,16.067,16.051,20.0]
[1673524580276,46.68,16.066,16.051,20.0]
[1673524580488,20.0,16.065,16.051,20.0]
[1673524580697,46.69,16.064,16.051,20.0]
[1673524582058,20.0,16.065,16.051,32.61076907]
[1673524582272,20.0,16.067,16.052,0.96]
[1673524582589,46.68,16.066,16.052,13.57076907]
[1673524582791,46.68,16.066,16.053,20.0]
[1673524583153,108.2516,16.069,16.055,20.0]
[1673524583154,46.68,16.068,16.055,20.0]
[1673524583370,46.68,16.068,16.056,20.0]
[1673524584824,17.0,16.067,16.056,20.0]
[1673524585034,46.68,16.066,16.054,20.0]
[1673524587649,46.68,16.068,16.054,20.0]
[1673524594905,46.68,16.068,16.055,0.96]
[1673524600592,46.68,16.068,16.056,0.96]
[1673524600801,46.68,16.068,16.057,0.96]
[1673524601223,46.68,16.068,16.054,20.0]
[1673524601434,46.68,16.068,16.055,0.96]
[1673524603001,46.68,16.068,16.054,20.0]
[1673524607322,17.0,16.067,16.054,20.0]
[1673524607536,46.68,16.066,16.054,20.0]
[1673524608803,46.68,16.068,16.054,20.0]
[1673524615324,46.68,16.068,16.055,0.96]
[1673524616911,46.68,16.068,16.054,20.0]
[1673524616913,17.0,16.067,16.054,20.0]
[1673524617111,46.68,16.066,16.054,20.0]
[1673524619094,46.68,16.066,16.055,20.0]
[1673524619303,46.68,16.066,16.053,20.0]
[1673524621307,46.68,16.066,16.05,20.0]
[1673524621632,129.2417,16.065,16.051,0.96]
[1673524621847,46.69,16.064,16.051,0.96]
[1673524625522,46.69,16.064,16.05,20.0]
[1673524628455,46.69,16.064,16.049,20.0]
[1673524628780,17.0,16.063,16.049,20.0]
[1673524633399,17.0,16.063,16.05,13.22]
[1673524634767,46.69,16.064,16.05,13.22]
[1673524637205,46.69,16.064,16.051,20.0]
[1673524637398,46.68,16.067,16.052,20.96]
[1673524637602,46.68,16.068,16.053,20.0]
[1673524637815,46.68,16.068,16.054,20.0]
[1673524640662,52.87698,16.068,16.054,20.0]
[1673524641098,6.19698,16.067,16.054,20.0]
[1673524643193,6.19698,16.067,16.053,20.0]
[1673524644347,17.0,16.066,16.053,20.0]
[1673524644664,6.19698,16.065,16.053,20.0]
[1673524644980,6.19698,16.065,16.052,20.0]
[1673524649518,6.19698,16.065,16.052,20.0]
[1673524651822,6.19698,16.065,16.052,66.73]
[1673524653190,6.19698,16.065,16.05,59.95]
[1673524653403,13.09,16.06,16.048,66.74]
[1673524653598,19.28698,16.06,16.048,66.74]
[1673524653812,19.28698,16.06,16.048,46.74]
[1673524654022,19.28698,16.06,16.047,119.6049]
[1673524654350,6.19698,16.059,16.047,119.6049]
[1673524655808,17.0,16.064,16.047,119.6049]
[1673524655809,46.68,16.068,16.051,20.0]
[1673524656024,66.03,16.07,16.053,20.0]
[1673524656214,66.03,16.07,16.055,20.0]
[1673524656424,66.03,16.07,16.056,134.305]
[1673524656654,13.15,16.07,16.056,134.305]
[1673524656868,13.15,16.07,16.058,20.0]
[1673524657174,13.15,16.07,16.059,0.96]
[1673524658430,13.15,16.07,16.058,20.0]
[1673524660976,13.15,16.07,16.057,46.71]
[1673524664324,13.15,16.07,16.056,134.305]
[1673524664537,13.15,16.07,16.056,181.015]
[1673524666738,13.15,16.07,16.057,20.0]
[1673524668959,13.15,16.07,16.056,181.015]
[1673524672856,13.15,16.07,16.057,20.96]
[1673524673049,13.15,16.07,16.058,30.88]
[1673524674626,13.15,16.07,16.059,20.0]
[1673524674941,117.0138,16.073,16.06,32.55]
[1673524675149,109.3967,16.074,16.06,32.55]
[1673524675364,109.3967,16.074,16.061,20.0]
[1673524675579,109.3967,16.074,16.062,52.44]
[1673524675787,108.2311,16.078,16.063,0.96]
[1673524675994,108.2311,16.078,16.065,20.0]
[1673524676324,108.2311,16.078,16.066,58.24]
[1673524681480,108.2311,16.078,16.066,20.0]
[1673524684932,108.2311,16.078,16.067,0.96]
[1673524685143,108.2311,16.078,16.068,0.96]
[1673524686003,108.2311,16.078,16.067,20.96]
[1673524686527,108.2311,16.078,16.066,40.0]
[1673524689454,108.2311,16.078,16.066,86.68]
[1673524690923,108.2311,16.078,16.066,40.0]
[1673524691782,108.2311,16.078,16.066,20.0]
[1673524704214,46.65,16.079,16.066,20.0]
[1673524704409,46.64,16.082,16.067,0.96]
[1673524704603,66.07,16.09,16.067,0.96]
[1673524704604,46.62,16.088,16.07,13.21]
[1673524704940,46.62,16.089,16.072,20.0]
[1673524705156,46.62,16.089,16.073,20.96]
[1673524705352,46.62,16.089,16.074,20.96]
[1673524705565,46.62,16.089,16.075,0.96]
[1673524705892,46.62,16.089,16.076,20.96]
[1673524708187,155.1334,16.091,16.077,0.96]
[1673524708527,108.5234,16.091,16.077,0.96]
[1673524708701,155.1334,16.091,16.077,0.96]
[1673524710083,155.1334,16.091,16.076,20.0]
[1673524710486,108.5234,16.091,16.077,0.96]
[1673524710700,108.5234,16.091,16.08,13.18]
[1673524710910,108.5234,16.091,16.081,0.96]
[1673524713351,108.5234,16.091,16.08,13.18]
[1673524713980,108.5234,16.091,16.081,0.96]
[1673524714296,46.6,16.095,16.081,0.96]
[1673524714525,46.59,16.098,16.081,0.96]
[1673524714719,154.8398,16.098,16.081,0.96]
[1673524715250,19.14496728,16.097,16.081,0.96]
[1673524715466,46.6,16.096,16.081,0.96]
[1673524716819,46.6,16.096,16.08,13.18]
[1673524717024,46.61,16.091,16.08,13.18]
[1673524717853,46.61,16.091,16.076,20.0]
[1673524718080,46.61,16.091,16.075,20.0]
[1673524718286,30.21,16.09,16.076,20.0]
[1673524718480,46.62,16.089,16.076,20.0]
[1673524722485,17.0,16.088,16.076,20.0]
[1673524722810,46.62,16.087,16.075,20.0]
[1673524723449,17.0,16.086,16.075,20.0]
[1673524723640,46.63,16.085,16.075,20.0]
[1673524725444,46.62,16.088,16.075,20.0]
[1673524727121,46.62,16.089,16.075,20.0]
[1673524727316,17.0,16.088,16.075,20.0]
[1673524727526,46.62,16.087,16.075,20.0]
[1673524735743,46.62,16.087,16.071,117.5733]
[1673524735744,20.0,16.085,16.069,20.0]
[1673524735958,63.63,16.084,16.069,20.0]
[1673524736684,110.1508,16.083,16.069,20.0]
[1673524736874,110.1508,16.083,16.07,0.96]
[1673524740985,46.64,16.082,16.07,0.96]
[1673524741735,156.7908,16.083,16.07,0.96]
[1673524745185,156.7908,16.083,16.069,20.0]
[1673524749638,46.64,16.083,16.07,20.0]
[1673524749940,46.62,16.087,16.071,20.96]
[1673524750259,46.62,16.089,16.072,20.0]
[1673524750453,17.0,16.088,16.072,20.96]
[1673524750665,46.62,16.087,16.072,20.96]
[1673524754971,46.62,16.089,16.073,20.96]
[1673524755176,46.62,16.089,16.074,20.96]
[1673524755409,46.62,16.089,16.075,20.0]
[1673524755718,46.62,16.089,16.076,20.0]
[1673524757936,133.0445,16.09,16.076,20.0]
[1673524758245,63.62,16.089,16.076,20.0]
[1673524759404,46.62,16.089,16.076,20.0]
[1673524767384,17.0,16.088,16.076,20.0]
[1673524767595,46.62,16.087,16.075,20.0]
[1673524775382,46.62,16.087,16.075,40.0]
[1673524777898,46.62,16.087,16.075,20.0]
[1673524778111,20.0,16.086,16.068,46.68]
[1673524778307,20.0,16.086,16.067,66.68]
[1673524778308,46.63,16.085,16.067,66.68]
[1673524778636,17.0,16.084,16.067,66.68]
[1673524778826,46.64,16.083,16.067,66.68]
[1673524779038,17.0,16.082,16.067,66.68]
[1673524780097,63.64,16.082,16.067,20.0]
[1673524780849,63.64,16.082,16.066,66.68]
[1673524781044,63.64,16.082,16.064,185.2771]
[1673524782117,63.64,16.082,16.066,20.0]
[1673524782298,63.64,16.082,16.067,20.0]
[1673524782738,63.64,16.082,16.066,20.0]
[1673524785361,13.21,16.08,16.066,20.0]
[1673524785573,63.65,16.079,16.066,20.0]
[1673524790005,13.21,16.08,16.066,20.0]
[1673524790531,63.65,16.079,16.066,20.0]
[1673524791890,46.65,16.079,16.066,20.0]
[1673524792103,13.21,16.08,16.066,20.0]
[1673524795568,46.64,16.082,16.067,20.0]
[1673524795781,17.0,16.081,16.067,20.0]
[1673524798507,226.9228,16.083,16.067,20.0]
[1673524798720,17.0,16.082,16.067,20.0]
[1673524799030,63.64,16.082,16.067,20.0]
[1673524800423,63.64,16.082,16.068,46.68]
[1673524800632,63.64,16.082,16.069,20.0]
[1673524800938,17.0,16.082,16.069,20.0]
[1673524801905,17.0,16.082,16.067,66.68]
[1673524802201,17.0,16.082,16.067,20.0]
[1673524802417,46.64,16.081,16.067,20.0]
[1673524803779,13.19,16.08,16.067,20.0]
[1673524803977,13.19,16.08,16.067,66.68]
[1673524804596,226.9228,16.083,16.07,13.19]
[1673524806303,226.9228,16.083,16.07,33.19]
[1673524808169,110.5379,16.083,16.07,47.67573115]
[1673524808386,110.5379,16.083,16.071,21.92]
[1673524809229,110.5379,16.083,16.07,13.19]
[1673524809447,46.64,16.082,16.07,13.19]
[1673524809659,46.64,16.082,16.07,13.09886538]
[1673524810092,13.19,16.08,16.07,13.09886538]
[1673524816501,46.64,16.082,16.07,13.09886538]
[1673524819337,110.5379,16.083,16.07,13.09886538]
[1673524819656,17.0,16.082,16.07,13.09886538]
[1673524820721,13.09886538,16.07,16.054,229.89898583]
[1673524820930,13.09886538,16.07,16.038,118.3811]
[1673524820931,13.15,16.06,16.04,230.09964579]
[1673524821233,13.15,16.06,16.041,46.76]
[1673524821424,13.15,16.06,16.042,230.07095864]
[1673524821637,13.15,16.06,16.043,66.75]
[1673524821843,13.15,16.06,16.044,230.04227864]
[1673524822057,13.15,16.06,16.045,46.75]
[1673524822269,46.68,16.066,16.05,13.19]
[1673524822496,43.19698,16.065,16.05,13.19]
[1673524822692,6.19698,16.064,16.05,13.19]
[1673524823444,17.0,16.063,16.05,13.19]
[1673524823633,6.19698,16.062,16.05,13.19]
[1673524825873,20.0,16.059,16.044,276.79227864]
[1673524826075,6.19698,16.058,16.045,20.0]
[1673524826269,17.0,16.057,16.045,20.0]
[1673524826482,6.19698,16.056,16.045,20.0]
[1673524832143,6.19698,16.056,16.045,66.75]
[1673524832359,6.19698,16.056,16.045,20.0]
[1673524835222,6.19698,16.056,16.045,66.75]
[1673524835845,6.19698,16.056,16.045,86.75]
[1673524837096,6.19698,16.056,16.045,66.75]
[1673524837533,6.19698,16.056,16.045,86.75]
[1673524838674,6.19698,16.056,16.045,66.75]
[1673524838885,6.19698,16.056,16.045,86.75]
[1673524839312,6.19698,16.056,16.046,20.0]
[1673524840569,25.34194728,16.056,16.045,20.0]
[1673524840782,6.19698,16.056,16.045,40.0]
[1673524841323,6.19698,16.056,16.047,20.0]
[1673524841538,6.19698,16.056,16.048,46.74]
[1673524841848,6.19698,16.056,16.047,20.0]
[1673524846683,6.19698,16.056,16.047,66.74]
[1673524851127,6.19698,16.056,16.047,46.74]
[1673524851311,6.19698,16.056,16.046,46.74]
[1673524851960,6.19698,16.056,16.045,20.0]
[1673524855009,6.19698,16.056,16.045,40.0]
[1673524856676,6.19698,16.056,16.045,20.0]
[1673524856894,17.0,16.055,16.044,20.0]
[1673524857223,6.19698,16.054,16.044,20.0]
[1673524859527,6.19698,16.054,16.044,62.74]
[1673524863854,17.0,16.053,16.044,62.74]
[1673524864040,6.19698,16.052,16.044,20.0]
[1673524864250,6.19698,16.052,16.043,20.0]
[1673524866054,6.19698,16.052,16.044,20.0]
[1673524866263,6.19698,16.052,16.044,60.68]
[1673524866474,6.19698,16.052,16.045,20.0]
[1673524867212,6.19698,16.052,16.043,40.0]
[1673524867642,6.19698,16.052,16.043,20.0]
[1673524869619,17.0,16.051,16.043,20.0]
[1673524869829,6.19698,16.05,16.042,20.0]
[1673524870363,17.0,16.049,16.038,158.5703]
[1673524870572,6.19698,16.048,16.038,116.0503]
[1673524870890,17.0,16.047,16.038,116.0503]
[1673524871101,6.19698,16.046,16.038,116.0503]
[1673524871310,6.19698,16.046,16.035,41.31]
[1673524871816,6.19698,16.046,16.036,20.0]
[1673524872028,6.19698,16.046,16.037,41.22]
[1673524872782,6.19698,16.046,16.036,20.0]
[1673524873000,6.19698,16.046,16.037,41.2]
[1673524875215,6.19698,16.046,16.036,20.0]
[1673524875397,6.19698,16.046,16.037,41.45]
[1673524876455,6.19698,16.046,16.036,20.0]
[1673524876792,6.19698,16.046,16.035,20.0]
[1673524876983,6.19698,16.046,16.037,20.0]
[1673524877513,6.19698,16.046,16.036,41.35]
[1673524878871,6.19698,16.046,16.035,61.3]